[Event "Titled Tuesday Blitz November 14 Early 2023"]
[White "Pourkashiyan, Atousa"]
[Black "Golubev, Mikhail"]
[WhiteFideId "12502014"]
[BlackFideId "14100983"]
[WhiteElo "2529"]
[BlackElo "2658"]
[Result "1/2-1/2"]
[Round "8"]
[TimeControl "180+1"]
[Date "2023.11.14"]
[WhiteClock "0:00:14"]
[BlackClock "0:00:06"]
[Board "73"]

1. e4 {[%clk 0:02:20]}  c5 {[%clk 0:02:59]} 2. Nf3 {[%clk 0:02:20]}  d6 {[%clk 0:02:58]} 3. d4 {[%clk 0:02:21]}  cxd4 {[%clk 0:02:59]} 4. Nxd4 {[%clk 0:02:21]}  Nf6 {[%clk 0:02:59]} 5. Nc3 {[%clk 0:02:22]}  g6 {[%clk 0:02:59]} 6. Be3 {[%clk 0:02:20]}  Bg7 {[%clk 0:02:59]} 7. Be2 {[%clk 0:02:20]}  Nc6 {[%clk 0:02:59]} 8. O-O {[%clk 0:02:20]}  O-O {[%clk 0:02:59]} 9. Qd2 {[%clk 0:02:21]}  Bd7 {[%clk 0:02:53]} 10. Rad1 {[%clk 0:02:20]}  Rc8 {[%clk 0:02:52]} 11. f4 {[%clk 0:02:14]}  Ng4 {[%clk 0:02:51]} 12. Bxg4 {[%clk 0:02:10]}  Bxg4 {[%clk 0:02:52]} 13. Rde1 {[%clk 0:02:10]}  Bd7 {[%clk 0:02:50]} 14. Kh1 {[%clk 0:02:10]}  Qa5 {[%clk 0:02:39]} 15. Nxc6 {[%clk 0:02:02]}  bxc6 {[%clk 0:02:39]} 16. Bd4 {[%clk 0:01:45]}  Bxd4 {[%clk 0:02:24]} 17. Qxd4 {[%clk 0:01:45]}  Qb6 {[%clk 0:02:24]} 18. Ne2 {[%clk 0:01:36]}  Qxd4 {[%clk 0:02:22]} 19. Nxd4 {[%clk 0:01:37]}  c5 {[%clk 0:02:21]} 20. Nf3 {[%clk 0:01:32]}  Rb8 {[%clk 0:02:13]} 21. b3 {[%clk 0:01:32]}  c4 {[%clk 0:02:12]} 22. Nd2 {[%clk 0:01:31]}  cxb3 {[%clk 0:02:07]} 23. axb3 {[%clk 0:01:27]}  a5 {[%clk 0:02:07]} 24. Ra1 {[%clk 0:01:26]}  a4 {[%clk 0:02:07]} 25. bxa4 {[%clk 0:01:25]}  Rfc8 {[%clk 0:01:58]} 26. c4 {[%clk 0:01:14]}  Ra8 {[%clk 0:01:48]} 27. a5 {[%clk 0:01:14]}  Rc5 {[%clk 0:01:47]} 28. a6 {[%clk 0:00:58]}  Rc6 {[%clk 0:01:46]} 29. h3 {[%clk 0:00:38]}  Rcxa6 {[%clk 0:01:43]} 30. Rxa6 {[%clk 0:00:39]}  Rxa6 {[%clk 0:01:42]} 31. Rb1 {[%clk 0:00:40]}  Ra2 {[%clk 0:01:37]} 32. Nf3 {[%clk 0:00:39]}  Bc6 {[%clk 0:01:32]} 33. e5 {[%clk 0:00:39]}  Bxf3 {[%clk 0:01:31]} 34. gxf3 {[%clk 0:00:39]}  Rc2 {[%clk 0:01:19]} 35. exd6 {[%clk 0:00:37]}  exd6 {[%clk 0:01:19]} 36. Rd1 {[%clk 0:00:37]}  Rxc4 {[%clk 0:01:09]} 37. Rxd6 {[%clk 0:00:37]}  Rxf4 {[%clk 0:01:02]} 38. Kg2 {[%clk 0:00:37]}  Kg7 {[%clk 0:00:51]} 39. Kg3 {[%clk 0:00:38]}  g5 {[%clk 0:00:51]} 40. Rd5 {[%clk 0:00:37]}  f6 {[%clk 0:00:47]} 41. Ra5 {[%clk 0:00:37]}  h5 {[%clk 0:00:46]} 42. Ra8 {[%clk 0:00:35]}  Rb4 {[%clk 0:00:39]} 43. Ra2 {[%clk 0:00:34]}  Kg6 {[%clk 0:00:38]} 44. Rc2 {[%clk 0:00:33]}  h4+ {[%clk 0:00:26]} 45. Kg2 {[%clk 0:00:33]}  Kf5 {[%clk 0:00:20]} 46. Kf2 {[%clk 0:00:29]}  Kf4 {[%clk 0:00:14]} 47. Ra2 {[%clk 0:00:29]}  Rb3 {[%clk 0:00:10]} 48. Ra4+ {[%clk 0:00:29]}  Ke5 {[%clk 0:00:09]} 49. Ra5+ {[%clk 0:00:29]}  Kd4 {[%clk 0:00:09]} 50. Rf5 {[%clk 0:00:27]}  Rb2+ {[%clk 0:00:08]} 51. Kg1 {[%clk 0:00:25]}  Rb6 {[%clk 0:00:07]} 52. Kf2 {[%clk 0:00:24]}  Rb2+ {[%clk 0:00:06]} 53. Kg1 {[%clk 0:00:24]}  Rb1+ {[%clk 0:00:05]} 54. Kf2 {[%clk 0:00:24]}  Rb6 {[%clk 0:00:05]} 55. Ke2 {[%clk 0:00:17]}  Rb2+ {[%clk 0:00:04]} 56. Kf1 {[%clk 0:00:17]}  Ke3 {[%clk 0:00:04]} 57. Rxf6 {[%clk 0:00:17]}  Rf2+ {[%clk 0:00:04]} 58. Kg1 {[%clk 0:00:17]}  Rxf3 {[%clk 0:00:05]} 59. Re6+ {[%clk 0:00:15]}  Kf4 {[%clk 0:00:05]} 60. Kg2 {[%clk 0:00:14]}  Rg3+ {[%clk 0:00:05]} 61. Kh2 {[%clk 0:00:15]}  Kf5 {[%clk 0:00:06]} 62. Re2 {[%clk 0:00:15]}  Rf3 {[%clk 0:00:06]} 63. Rc2 {[%clk 0:00:14]}  Kf4 {[%clk 0:00:06]} 64. Rc4+ {[%clk 0:00:14]}  Ke3 {[%clk 0:00:06]} 65. Rc3+ {[%clk 0:00:14]}  Kf2 {[%clk 0:00:06]} 66. Rc5 {[%clk 0:00:13]}  Rg3 {[%clk 0:00:05]} 67. Rf5+ {[%clk 0:00:14]}  Ke3 {[%clk 0:00:05]} 68. Rf8 {[%clk 0:00:14]}  Ke4 {[%clk 0:00:06]} 69. Rf7 {[%clk 0:00:14]}  Ke5 {[%clk 0:00:06]} 70. Rf8 {[%clk 0:00:15]}  Ke4 {[%clk 0:00:06]} 71. Rf7 {[%clk 0:00:15]}  Rf3 {[%clk 0:00:07]} 72. Rg7 {[%clk 0:00:15]}  Rf5 {[%clk 0:00:06]} 73. Ra7 {[%clk 0:00:14]}  Rf2+ {[%clk 0:00:05]} 74. Kg1 {[%clk 0:00:14]}  Rc2 {[%clk 0:00:06]} 75. Ra3 {[%clk 0:00:13]}  Rc1+ {[%clk 0:00:05]} 76. Kg2 {[%clk 0:00:13]}  Rc2+ {[%clk 0:00:05]} 77. Kg1 {[%clk 0:00:13]}  Rc5 {[%clk 0:00:05]} 78. Kg2 {[%clk 0:00:13]}  Rd5 {[%clk 0:00:06]} 79. Rb3 {[%clk 0:00:13]}  Kf4 {[%clk 0:00:06]} 80. Rb4+ {[%clk 0:00:13]}  Kf5 {[%clk 0:00:05]} 81. Rc4 {[%clk 0:00:12]}  Rd2+ {[%clk 0:00:05]} 82. Kg1 {[%clk 0:00:12]}  Rd1+ {[%clk 0:00:05]} 83. Kg2 {[%clk 0:00:13]}  Rd2+ {[%clk 0:00:05]} 84. Kg1 {[%clk 0:00:13]}  Rd1+ {[%clk 0:00:06]} 85. Kg2 {[%clk 0:00:14]}  Rd2+ {[%clk 0:00:06]} 1/2-1/2


[Site "https://www.chess.com"]

[Event "Titled Tuesday Blitz November 14 Early 2023"]
[White "elmusmolamas"]
[Black "Bao, Qilin"]
[BlackFideId "8605750"]
[WhiteElo "2519"]
[BlackElo "2652"]
[Result "0-1"]
[Round "8"]
[TimeControl "180+1"]
[Date "2023.11.14"]
[WhiteClock "0:00:14"]
[BlackClock "0:00:27"]
[Board "74"]

1. e4 {[%clk 0:03:00]}  e6 {[%clk 0:02:58]} 2. d4 {[%clk 0:03:00]}  d5 {[%clk 0:02:58]} 3. Bd3 {[%clk 0:03:01]}  c5 {[%clk 0:02:45]} 4. c3 {[%clk 0:02:59]}  cxd4 {[%clk 0:02:35]} 5. cxd4 {[%clk 0:03:00]}  Nc6 {[%clk 0:02:35]} 6. Nf3 {[%clk 0:02:56]}  Bb4+ {[%clk 0:02:25]} 7. Nc3 {[%clk 0:02:54]}  Nf6 {[%clk 0:02:25]} 8. e5 {[%clk 0:02:51]}  Ne4 {[%clk 0:02:25]} 9. Bd2 {[%clk 0:02:38]}  Nxd2 {[%clk 0:02:19]} 10. Qxd2 {[%clk 0:02:38]}  Qb6 {[%clk 0:02:20]} 11. O-O {[%clk 0:02:35]}  Bd7 {[%clk 0:02:20]} 12. a3 {[%clk 0:02:34]}  Bxc3 {[%clk 0:02:19]} 13. bxc3 {[%clk 0:02:35]}  Na5 {[%clk 0:02:18]} 14. Ng5 {[%clk 0:02:24]}  h6 {[%clk 0:02:15]} 15. Nxf7 {[%clk 0:02:13]}  Kxf7 {[%clk 0:02:13]} 16. Qf4+ {[%clk 0:02:14]}  Ke7 {[%clk 0:02:11]} 17. Qh4+ {[%clk 0:02:14]}  g5 {[%clk 0:02:10]} 18. Qh5 {[%clk 0:02:13]}  Raf8 {[%clk 0:02:06]} 19. f4 {[%clk 0:02:03]}  Be8 {[%clk 0:01:56]} 20. Qg4 {[%clk 0:02:01]}  Nc4 {[%clk 0:01:39]} 21. fxg5 {[%clk 0:01:49]}  Ne3 {[%clk 0:01:29]} 22. Qh4 {[%clk 0:01:49]}  Nxf1 {[%clk 0:01:28]} 23. gxh6+ {[%clk 0:01:49]}  Kd7 {[%clk 0:01:27]} 24. Rxf1 {[%clk 0:01:48]}  Rxf1+ {[%clk 0:01:22]} 25. Bxf1 {[%clk 0:01:49]}  Qb1 {[%clk 0:01:22]} 26. Qf6 {[%clk 0:01:22]}  Rh7 {[%clk 0:01:21]} 27. h4 {[%clk 0:01:08]}  Rf7 {[%clk 0:01:20]} 28. h7 {[%clk 0:00:58]}  Qxh7 {[%clk 0:01:03]} 29. Bb5+ {[%clk 0:00:57]}  Kc7 {[%clk 0:00:59]} 30. Qxe6 {[%clk 0:00:47]}  Bxb5 {[%clk 0:00:55]} 31. Qd6+ {[%clk 0:00:29]}  Kc8 {[%clk 0:00:56]} 32. Qc5+ {[%clk 0:00:30]}  Bc6 {[%clk 0:00:56]} 33. e6 {[%clk 0:00:31]}  Re7 {[%clk 0:00:53]} 34. c4 {[%clk 0:00:26]}  Qxh4 {[%clk 0:00:31]} 35. Qa5 {[%clk 0:00:14]}  Qxd4+ {[%clk 0:00:27]} 0-1


[Site "https://www.chess.com"]

[Event "Titled Tuesday Blitz November 14 Early 2023"]
[White "Omariev, Maksim"]
[Black "Pastar, Slaven"]
[WhiteFideId "4193423"]
[BlackFideId "14402718"]
[WhiteElo "2494"]
[BlackElo "2638"]
[Result "1-0"]
[Round "8"]
[TimeControl "180+1"]
[Date "2023.11.14"]
[WhiteClock "0:00:20"]
[BlackClock "0:00:22"]
[Board "76"]

1. e4 {[%clk 0:03:00]}  b6 {[%clk 0:03:00]} 2. d4 {[%clk 0:02:59]}  Bb7 {[%clk 0:03:00]} 3. Nc3 {[%clk 0:03:00]}  e6 {[%clk 0:03:00]} 4. Be3 {[%clk 0:02:59]}  Ne7 {[%clk 0:02:57]} 5. Qd2 {[%clk 0:02:57]}  d5 {[%clk 0:02:56]} 6. f3 {[%clk 0:02:57]}  Nd7 {[%clk 0:02:50]} 7. Nh3 {[%clk 0:02:20]}  a6 {[%clk 0:02:43]} 8. Nf4 {[%clk 0:02:17]}  Nf6 {[%clk 0:02:35]} 9. e5 {[%clk 0:02:08]}  Nd7 {[%clk 0:02:32]} 10. Nd1 {[%clk 0:01:52]}  c5 {[%clk 0:02:27]} 11. c3 {[%clk 0:01:53]}  cxd4 {[%clk 0:02:26]} 12. cxd4 {[%clk 0:01:53]}  Nf5 {[%clk 0:02:26]} 13. Bf2 {[%clk 0:01:52]}  b5 {[%clk 0:02:20]} 14. g4 {[%clk 0:01:50]}  Nh4 {[%clk 0:02:17]} 15. Be2 {[%clk 0:01:46]}  Ng6 {[%clk 0:02:14]} 16. Nh5 {[%clk 0:01:44]}  Rc8 {[%clk 0:02:10]} 17. O-O {[%clk 0:01:37]}  Qc7 {[%clk 0:01:48]} 18. Bd3 {[%clk 0:01:31]}  Nb6 {[%clk 0:01:14]} 19. f4 {[%clk 0:01:30]}  Nc4 {[%clk 0:01:14]} 20. Qe2 {[%clk 0:01:30]}  Ne7 {[%clk 0:00:49]} 21. f5 {[%clk 0:01:06]}  Nc6 {[%clk 0:00:48]} 22. Rc1 {[%clk 0:00:57]}  Qd8 {[%clk 0:00:29]} 23. b3 {[%clk 0:00:48]}  Na3 {[%clk 0:00:20]} 24. h4 {[%clk 0:00:26]}  Nxd4 {[%clk 0:00:14]} 25. Bxd4 {[%clk 0:00:21]}  Rxc1 {[%clk 0:00:14]} 26. fxe6 {[%clk 0:00:12]}  fxe6 {[%clk 0:00:13]} 27. Qf3 {[%clk 0:00:12]}  Qe7 {[%clk 0:00:04]} 28. Be3 {[%clk 0:00:07]}  Rc7 {[%clk 0:00:03]} 29. Bg5 {[%clk 0:00:08]}  Qc5+ {[%clk 0:00:04]} 30. Kh1 {[%clk 0:00:07]}  Kd7 {[%clk 0:00:01]} 31. Qf7+ {[%clk 0:00:07]}  Kc6 {[%clk 0:00:01]} 32. Qxe6+ {[%clk 0:00:07]}  Bd6 {[%clk 0:00:01]} 33. exd6 {[%clk 0:00:07]}  Qxd6 {[%clk 0:00:02]} 34. Qxd6+ {[%clk 0:00:07]}  Kxd6 {[%clk 0:00:02]} 35. Ne3 {[%clk 0:00:08]}  Rd7 {[%clk 0:00:02]} 36. Nf5+ {[%clk 0:00:09]}  Kc6 {[%clk 0:00:03]} 37. Nhxg7 {[%clk 0:00:09]}  Rf8 {[%clk 0:00:03]} 38. Ne6 {[%clk 0:00:09]}  Re8 {[%clk 0:00:03]} 39. Nfd4+ {[%clk 0:00:09]}  Kb6 {[%clk 0:00:04]} 40. Bf5 {[%clk 0:00:08]}  Rd6 {[%clk 0:00:03]} 41. Be3 {[%clk 0:00:09]}  Rc6 {[%clk 0:00:03]} 42. Nxc6+ {[%clk 0:00:09]}  Kxc6 {[%clk 0:00:04]} 43. Bd4 {[%clk 0:00:09]}  Kd6 {[%clk 0:00:05]} 44. Re1 {[%clk 0:00:10]}  b4 {[%clk 0:00:05]} 45. Bc5+ {[%clk 0:00:10]}  Kc6 {[%clk 0:00:05]} 46. Nd4+ {[%clk 0:00:10]}  Kxc5 {[%clk 0:00:06]} 47. Rxe8 {[%clk 0:00:09]}  Kxd4 {[%clk 0:00:07]} 48. Re7 {[%clk 0:00:09]}  Bc6 {[%clk 0:00:06]} 49. Bxh7 {[%clk 0:00:09]}  Kc3 {[%clk 0:00:06]} 50. h5 {[%clk 0:00:09]}  d4+ {[%clk 0:00:07]} 51. Kh2 {[%clk 0:00:09]}  d3 {[%clk 0:00:08]} 52. Bxd3 {[%clk 0:00:08]}  Kxd3 {[%clk 0:00:08]} 53. h6 {[%clk 0:00:09]}  Be4 {[%clk 0:00:08]} 54. Rxe4 {[%clk 0:00:09]}  Kxe4 {[%clk 0:00:08]} 55. h7 {[%clk 0:00:10]}  Kd3 {[%clk 0:00:09]} 56. h8=Q {[%clk 0:00:11]}  Kc2 {[%clk 0:00:10]} 57. Qa8 {[%clk 0:00:11]}  Kb1 {[%clk 0:00:11]} 58. Qxa6 {[%clk 0:00:11]}  Kxa2 {[%clk 0:00:12]} 59. Qd3 {[%clk 0:00:11]}  Nb1 {[%clk 0:00:11]} 60. g5 {[%clk 0:00:11]}  Nc3 {[%clk 0:00:12]} 61. Qc2+ {[%clk 0:00:11]}  Ka3 {[%clk 0:00:12]} 62. g6 {[%clk 0:00:12]}  Nd5 {[%clk 0:00:12]} 63. g7 {[%clk 0:00:12]}  Ne7 {[%clk 0:00:13]} 64. Qe2 {[%clk 0:00:11]}  Ng8 {[%clk 0:00:14]} 65. Qc4 {[%clk 0:00:11]}  Nh6 {[%clk 0:00:14]} 66. g8=Q {[%clk 0:00:12]}  Nxg8 {[%clk 0:00:14]} 67. Qxg8 {[%clk 0:00:13]}  Kb2 {[%clk 0:00:15]} 68. Qc4 {[%clk 0:00:14]}  Ka3 {[%clk 0:00:16]} 69. Kg3 {[%clk 0:00:14]}  Kb2 {[%clk 0:00:16]} 70. Kf4 {[%clk 0:00:15]}  Ka3 {[%clk 0:00:17]} 71. Ke5 {[%clk 0:00:16]}  Kb2 {[%clk 0:00:18]} 72. Kd5 {[%clk 0:00:17]}  Ka3 {[%clk 0:00:19]} 73. Kc5 {[%clk 0:00:18]}  Kb2 {[%clk 0:00:20]} 74. Kxb4 {[%clk 0:00:19]}  Ka2 {[%clk 0:00:21]} 75. Qe2+ {[%clk 0:00:19]}  Ka1 {[%clk 0:00:21]} 76. Kc3 {[%clk 0:00:19]}  Kb1 {[%clk 0:00:22]} 77. Qb2# {[%clk 0:00:20]} 1-0


[Site "https://www.chess.com"]

[Event "Titled Tuesday Blitz November 14 Early 2023"]
[White "Kuzhylnyi, Oleksandr"]
[Black "Grochal, Joey"]
[WhiteFideId "34110500"]
[BlackFideId "1019945"]
[WhiteElo "2629"]
[BlackElo "2490"]
[Result "1-0"]
[Round "8"]
[TimeControl "180+1"]
[Date "2023.11.14"]
[WhiteClock "0:00:18"]
[BlackClock "0:00:09"]
[Board "77"]

1. b3 {[%clk 0:03:00]}  e5 {[%clk 0:02:59]} 2. Bb2 {[%clk 0:03:01]}  Nc6 {[%clk 0:02:59]} 3. e3 {[%clk 0:03:02]}  Nf6 {[%clk 0:02:59]} 4. Bb5 {[%clk 0:02:58]}  Bd6 {[%clk 0:02:58]} 5. Na3 {[%clk 0:02:58]}  e4 {[%clk 0:02:55]} 6. Nc4 {[%clk 0:02:56]}  Qe7 {[%clk 0:02:55]} 7. Nxd6+ {[%clk 0:02:53]}  Qxd6 {[%clk 0:02:55]} 8. Nh3 {[%clk 0:02:52]}  a6 {[%clk 0:02:46]} 9. Be2 {[%clk 0:02:50]}  b5 {[%clk 0:02:45]} 10. O-O {[%clk 0:02:49]}  Bb7 {[%clk 0:02:44]} 11. f3 {[%clk 0:02:27]}  Ne5 {[%clk 0:02:37]} 12. fxe4 {[%clk 0:02:22]}  Bxe4 {[%clk 0:02:33]} 13. d3 {[%clk 0:02:21]}  Bb7 {[%clk 0:02:25]} 14. e4 {[%clk 0:02:15]}  Qe7 {[%clk 0:02:16]} 15. Qe1 {[%clk 0:02:11]}  d6 {[%clk 0:02:15]} 16. a4 {[%clk 0:02:06]}  Bc6 {[%clk 0:02:00]} 17. Kh1 {[%clk 0:02:00]}  h5 {[%clk 0:01:45]} 18. axb5 {[%clk 0:02:00]}  axb5 {[%clk 0:01:45]} 19. Rxa8+ {[%clk 0:01:59]}  Bxa8 {[%clk 0:01:46]} 20. d4 {[%clk 0:01:44]}  Neg4 {[%clk 0:01:43]} 21. Bxb5+ {[%clk 0:01:41]}  Kf8 {[%clk 0:01:36]} 22. d5 {[%clk 0:01:40]}  Qxe4 {[%clk 0:01:31]} 23. Qxe4 {[%clk 0:01:37]}  Nxe4 {[%clk 0:01:31]} 24. c4 {[%clk 0:01:36]}  Ke7 {[%clk 0:01:16]} 25. Bxg7 {[%clk 0:01:23]}  Rc8 {[%clk 0:01:08]} 26. Re1 {[%clk 0:01:17]}  f5 {[%clk 0:01:08]} 27. Kg1 {[%clk 0:01:14]}  c6 {[%clk 0:01:08]} 28. dxc6 {[%clk 0:01:14]}  Bxc6 {[%clk 0:01:08]} 29. Bxc6 {[%clk 0:01:12]}  Rxc6 {[%clk 0:01:09]} 30. Ng5 {[%clk 0:01:11]}  Nf2 {[%clk 0:00:54]} 31. Bd4 {[%clk 0:01:08]}  Nd3 {[%clk 0:00:54]} 32. Re3 {[%clk 0:01:05]}  Nc5 {[%clk 0:00:50]} 33. b4 {[%clk 0:01:00]}  Ne6 {[%clk 0:00:41]} 34. Nxe4 {[%clk 0:00:54]}  fxe4 {[%clk 0:00:41]} 35. Rxe4 {[%clk 0:00:54]}  Kd7 {[%clk 0:00:38]} 36. Be3 {[%clk 0:00:52]}  Ra6 {[%clk 0:00:38]} 37. h3 {[%clk 0:00:51]}  Ra2 {[%clk 0:00:33]} 38. b5 {[%clk 0:00:48]}  Rc2 {[%clk 0:00:29]} 39. g4 {[%clk 0:00:47]}  hxg4 {[%clk 0:00:28]} 40. hxg4 {[%clk 0:00:48]}  Ke7 {[%clk 0:00:18]} 41. Kf1 {[%clk 0:00:39]}  Kf7 {[%clk 0:00:18]} 42. Ke1 {[%clk 0:00:39]}  Nf8 {[%clk 0:00:15]} 43. Kd1 {[%clk 0:00:38]}  Rg2 {[%clk 0:00:14]} 44. b6 {[%clk 0:00:36]}  Nd7 {[%clk 0:00:14]} 45. Kc1 {[%clk 0:00:34]}  Re2 {[%clk 0:00:13]} 46. b7 {[%clk 0:00:32]}  Nb8 {[%clk 0:00:09]} 47. g5 {[%clk 0:00:30]}  Nc6 {[%clk 0:00:09]} 48. Rf4+ {[%clk 0:00:21]}  Kg6 {[%clk 0:00:09]} 49. Rf6+ {[%clk 0:00:20]}  Kg7 {[%clk 0:00:10]} 50. Rxd6 {[%clk 0:00:20]}  Rxe3 {[%clk 0:00:09]} 51. Rxc6 {[%clk 0:00:18]}  Rb3 {[%clk 0:00:09]} 1-0


[Site "https://www.chess.com"]

[Event "Titled Tuesday Blitz November 14 Early 2023"]
[White "borocotoajua"]
[Black "WindWhistler11"]
[WhiteElo "2600"]
[BlackElo "2467"]
[Result "1/2-1/2"]
[Round "8"]
[TimeControl "180+1"]
[Date "2023.11.14"]
[WhiteClock "0:00:07"]
[BlackClock "0:00:18"]
[Board "79"]

1. d4 {[%clk 0:02:55]}  Nf6 {[%clk 0:02:58]} 2. Nf3 {[%clk 0:02:54]}  e6 {[%clk 0:02:58]} 3. c4 {[%clk 0:02:55]}  c5 {[%clk 0:02:59]} 4. d5 {[%clk 0:02:55]}  exd5 {[%clk 0:02:59]} 5. cxd5 {[%clk 0:02:56]}  Bd6 {[%clk 0:02:59]} 6. Nc3 {[%clk 0:02:53]}  O-O {[%clk 0:03:00]} 7. g3 {[%clk 0:02:47]}  Re8 {[%clk 0:03:00]} 8. Bg2 {[%clk 0:02:47]}  Bf8 {[%clk 0:03:00]} 9. O-O {[%clk 0:02:45]}  d6 {[%clk 0:03:00]} 10. Nd2 {[%clk 0:02:45]}  Na6 {[%clk 0:03:00]} 11. Nc4 {[%clk 0:02:44]}  Nc7 {[%clk 0:03:00]} 12. a4 {[%clk 0:02:44]}  b6 {[%clk 0:03:00]} 13. h3 {[%clk 0:02:34]}  Ba6 {[%clk 0:03:00]} 14. b3 {[%clk 0:02:27]}  g6 {[%clk 0:02:49]} 15. e4 {[%clk 0:02:23]}  Bxc4 {[%clk 0:02:39]} 16. bxc4 {[%clk 0:02:22]}  Bg7 {[%clk 0:02:39]} 17. Bf4 {[%clk 0:02:12]}  Nh5 {[%clk 0:02:27]} 18. Bd2 {[%clk 0:02:11]}  Bd4 {[%clk 0:02:27]} 19. Kh2 {[%clk 0:02:05]}  Qf6 {[%clk 0:02:04]} 20. Qb3 {[%clk 0:02:04]}  Na6 {[%clk 0:01:30]} 21. Rad1 {[%clk 0:01:39]}  Nb4 {[%clk 0:01:19]} 22. Ne2 {[%clk 0:01:37]}  a5 {[%clk 0:00:36]} 23. Nxd4 {[%clk 0:01:28]}  cxd4 {[%clk 0:00:35]} 24. Bxb4 {[%clk 0:01:26]}  axb4 {[%clk 0:00:35]} 25. Qxb4 {[%clk 0:01:27]}  Ra6 {[%clk 0:00:34]} 26. Qb2 {[%clk 0:00:59]}  Rxa4 {[%clk 0:00:31]} 27. Qxd4 {[%clk 0:00:59]}  Qxd4 {[%clk 0:00:17]} 28. Rxd4 {[%clk 0:01:00]}  Rc8 {[%clk 0:00:15]} 29. Rb1 {[%clk 0:00:54]}  Rcxc4 {[%clk 0:00:03]} 30. Rxc4 {[%clk 0:00:55]}  Rxc4 {[%clk 0:00:04]} 31. Rxb6 {[%clk 0:00:56]}  Nf6 {[%clk 0:00:04]} 32. e5 {[%clk 0:00:21]}  Nd7 {[%clk 0:00:02]} 33. Rc6 {[%clk 0:00:12]}  Nxe5 {[%clk 0:00:02]} 34. Rxd6 {[%clk 0:00:12]}  Rc2 {[%clk 0:00:02]} 35. Rd8+ {[%clk 0:00:12]}  Kg7 {[%clk 0:00:02]} 36. Kg1 {[%clk 0:00:12]}  Nd3 {[%clk 0:00:02]} 37. d6 {[%clk 0:00:11]}  Rd2 {[%clk 0:00:02]} 38. Bf1 {[%clk 0:00:01]}  Nc5 {[%clk 0:00:02]} 39. d7 {[%clk 0:00:02]}  Ne6 {[%clk 0:00:02]} 40. Rc8 {[%clk 0:00:03]}  Rxd7 {[%clk 0:00:02]} 41. Rc2 {[%clk 0:00:03]}  Rd1 {[%clk 0:00:03]} 42. Rc3 {[%clk 0:00:01]}  Nd4 {[%clk 0:00:03]} 43. Kg2 {[%clk 0:00:01]}  Rd2 {[%clk 0:00:04]} 44. Re3 {[%clk 0:00:02]}  Ne6 {[%clk 0:00:05]} 45. Rf3 {[%clk 0:00:02]}  Nc5 {[%clk 0:00:05]} 46. Re3 {[%clk 0:00:02]}  Nd7 {[%clk 0:00:05]} 47. Re2 {[%clk 0:00:03]}  Rd5 {[%clk 0:00:05]} 48. Re3 {[%clk 0:00:03]}  Nf6 {[%clk 0:00:06]} 49. Be2 {[%clk 0:00:04]}  Rd2 {[%clk 0:00:06]} 50. Bf3 {[%clk 0:00:05]}  Nd7 {[%clk 0:00:07]} 51. Re2 {[%clk 0:00:06]}  Rd3 {[%clk 0:00:07]} 52. Re3 {[%clk 0:00:06]}  Rd4 {[%clk 0:00:07]} 53. Re2 {[%clk 0:00:07]}  Nc5 {[%clk 0:00:08]} 54. Re3 {[%clk 0:00:07]}  Rd2 {[%clk 0:00:08]} 55. Re2 {[%clk 0:00:07]}  Rd1 {[%clk 0:00:08]} 56. Re5 {[%clk 0:00:06]}  Rc1 {[%clk 0:00:09]} 57. Re2 {[%clk 0:00:06]}  Nd3 {[%clk 0:00:09]} 58. Be4 {[%clk 0:00:05]}  Ne5 {[%clk 0:00:08]} 59. f4 {[%clk 0:00:05]}  Nc4 {[%clk 0:00:09]} 60. Bf3 {[%clk 0:00:04]}  Rc3 {[%clk 0:00:09]} 61. h4 {[%clk 0:00:04]}  Ne3+ {[%clk 0:00:09]} 62. Kf2 {[%clk 0:00:04]}  Nf5 {[%clk 0:00:10]} 63. h5 {[%clk 0:00:04]}  Nd4 {[%clk 0:00:10]} 64. Re3 {[%clk 0:00:03]}  Rc2+ {[%clk 0:00:09]} 65. Kg1 {[%clk 0:00:02]}  Rc1+ {[%clk 0:00:10]} 66. Kg2 {[%clk 0:00:02]}  Rc2+ {[%clk 0:00:10]} 67. Kg1 {[%clk 0:00:03]}  Nxf3+ {[%clk 0:00:10]} 68. Rxf3 {[%clk 0:00:04]}  gxh5 {[%clk 0:00:11]} 69. Rd3 {[%clk 0:00:03]}  Kg6 {[%clk 0:00:11]} 70. Rd5 {[%clk 0:00:03]}  f6 {[%clk 0:00:11]} 71. Ra5 {[%clk 0:00:03]}  h6 {[%clk 0:00:11]} 72. Rb5 {[%clk 0:00:04]}  Rd2 {[%clk 0:00:11]} 73. Ra5 {[%clk 0:00:04]}  h4 {[%clk 0:00:12]} 74. gxh4 {[%clk 0:00:03]}  Rd4 {[%clk 0:00:12]} 75. f5+ {[%clk 0:00:03]}  Kh5 {[%clk 0:00:13]} 76. Ra6 {[%clk 0:00:03]}  Rg4+ {[%clk 0:00:12]} 77. Kf2 {[%clk 0:00:01]}  Rf4+ {[%clk 0:00:12]} 78. Kg3 {[%clk 0:00:02]}  Rxf5 {[%clk 0:00:13]} 79. Ra4 {[%clk 0:00:02]}  Rf1 {[%clk 0:00:13]} 80. Re4 {[%clk 0:00:02]}  f5 {[%clk 0:00:14]} 81. Re5 {[%clk 0:00:02]}  Rg1+ {[%clk 0:00:13]} 82. Kf4 {[%clk 0:00:03]}  Rg4+ {[%clk 0:00:13]} 83. Kf3 {[%clk 0:00:03]}  Kxh4 {[%clk 0:00:14]} 84. Rxf5 {[%clk 0:00:03]}  Rg3+ {[%clk 0:00:14]} 85. Kf2 {[%clk 0:00:04]}  Rg4 {[%clk 0:00:15]} 86. Rf3 {[%clk 0:00:04]}  h5 {[%clk 0:00:15]} 87. Kf1 {[%clk 0:00:04]}  Kg5 {[%clk 0:00:16]} 88. Rf2 {[%clk 0:00:04]}  Kh4 {[%clk 0:00:17]} 89. Rh2+ {[%clk 0:00:04]}  Kg5 {[%clk 0:00:16]} 90. Rg2 {[%clk 0:00:05]}  Kf4 {[%clk 0:00:15]} 91. Rxg4+ {[%clk 0:00:05]}  hxg4 {[%clk 0:00:15]} 92. Kg2 {[%clk 0:00:06]}  g3 {[%clk 0:00:16]} 93. Kg1 {[%clk 0:00:06]}  Kg4 {[%clk 0:00:16]} 94. Kg2 {[%clk 0:00:07]}  Kh4 {[%clk 0:00:17]} 95. Kg1 {[%clk 0:00:06]}  Kh3 {[%clk 0:00:17]} 96. Kh1 {[%clk 0:00:07]}  Kg4 {[%clk 0:00:16]} 97. Kg2 {[%clk 0:00:07]}  Kf4 {[%clk 0:00:17]} 98. Kg1 {[%clk 0:00:07]}  Kf3 {[%clk 0:00:17]} 99. Kf1 {[%clk 0:00:07]}  Kg4 {[%clk 0:00:18]} 100. Kg2 {[%clk 0:00:07]} 1/2-1/2


[Site "https://www.chess.com"]